bitfinex/quotes_BTCUSD_20250418
["timestamp","ask_amount","ask_price","bid_price","bid_amount"]
[1744980463193,0.24835956,84555.0,84552.0,0.22471187]
[1744980463952,0.24835956,84555.0,84553.0,0.34]
[1744980464398,0.23653523,84554.0,84553.0,0.34]
[1744980467190,0.23652965,84556.0,84554.0,0.2128817]
[1744980467395,0.23652965,84556.0,84553.0,0.0118269]
[1744980467659,0.23653266,84555.0,84553.0,0.22471112]
[1744980468161,0.23653266,84555.0,84553.0,0.0118269]
[1744980469021,0.23653523,84554.0,84552.0,0.34]
[1744980469434,0.01654328,84553.0,84552.0,0.55288674]
[1744980469755,0.24835929,84555.0,84552.0,0.55288674]
[1744980469955,0.01654374,84554.0,84552.0,0.55288674]
[1744980470690,0.01654374,84554.0,84553.0,0.22117693]
[1744980471350,0.001,84554.0,84553.0,0.22117693]
[1744980471493,0.01754374,84554.0,84553.0,0.22117693]
[1744980471718,0.01754374,84554.0,84553.0,0.23223388]
[1744980472109,0.23653802,84553.0,84551.0,0.01182718]
[1744980472319,0.26590597,84554.0,84551.0,0.01182718]
[1744980472523,0.01654281,84552.0,84551.0,0.01182718]
[1744980472722,0.24936223,84554.0,84551.0,0.22471545]
[1744980473225,0.01654328,84553.0,84551.0,0.22471545]
[1744980475910,0.01654328,84553.0,84552.0,0.21288674]
[1744980478708,0.01654328,84553.0,84551.0,0.22471579]
[1744980481602,0.01754328,84553.0,84551.0,0.22471579]
[1744980483403,0.01754328,84553.0,84552.0,0.21288674]
[1744980484356,0.01754328,84553.0,84552.0,0.22395209]
[1744980484505,0.01163793,84553.0,84552.0,0.56395209]
[1744980484927,0.01163793,84553.0,84552.0,0.57225105]
[1744980488140,0.001,84553.0,84552.0,0.57225105]
[1744980488543,0.0142947,84553.0,84552.0,0.57225105]
[1744980488724,0.001,84553.0,84552.0,0.57225105]
[1744980489152,0.0142947,84553.0,84552.0,0.57225105]
[1744980499541,0.00838959,84553.0,84552.0,0.57225105]
[1744980499721,0.01546891,84553.0,84552.0,0.57225105]
[1744980500041,0.2483532,84557.0,84554.0,0.21288026]
[1744980500218,0.23652981,84556.0,84554.0,0.21288026]
[1744980500555,0.23652981,84556.0,84555.0,0.01936431]
[1744980502105,0.2483532,84557.0,84555.0,0.01936431]
[1744980502308,0.2483532,84557.0,84556.0,0.01106535]
[1744980502659,0.2483532,84557.0,84556.0,0.01936431]
[1744980505828,0.01182634,84557.0,84556.0,0.01936431]
[1744980506011,0.24835317,84557.0,84556.0,0.01936431]
[1744980507177,0.26768538,84557.0,84556.0,0.01936431]
[1744980514832,0.26178027,84557.0,84556.0,0.01936431]
[1744980530809,0.25585904,84557.0,84556.0,0.01936431]
[1744980531216,0.26768538,84557.0,84556.0,0.01936431]
[1744980534798,0.26768538,84557.0,84556.0,0.01106535]
[1744980537102,0.26768538,84557.0,84556.0,0.01936709]
[1744980541406,0.26768538,84557.0,84556.0,0.01106535]
[1744980542976,0.26768538,84557.0,84556.0,0.01936581]
[1744980544341,0.26768538,84557.0,84556.0,0.01106535]
[1744980546140,0.26768538,84557.0,84556.0,0.01936548]
[1744980552985,0.23654018,84553.0,84550.0,0.24711415]
[1744980553194,0.23654018,84553.0,84551.0,0.21288823]
[1744980553395,0.01929888,84552.0,84551.0,0.21288823]
[1744980554494,0.24836309,84554.0,84551.0,0.22471541]
[1744980554688,0.01929888,84552.0,84551.0,0.22471541]
[1744980554893,0.24836309,84554.0,84551.0,0.22471541]
[1744980555119,0.01929888,84552.0,84551.0,0.22471541]
[1744980555240,0.24836309,84554.0,84551.0,0.22471541]
[1744980555440,0.01929946,84553.0,84552.0,0.22471286]
[1744980555695,0.23653802,84553.0,84551.0,0.01182718]
[1744980555837,0.25583748,84553.0,84551.0,0.01182718]
[1744980556492,0.25583748,84553.0,84550.0,0.2471145]
[1744980556818,0.25583748,84553.0,84551.0,0.21288906]
[1744980558317,0.01929946,84553.0,84551.0,0.21288906]
[1744980559065,0.25583791,84553.0,84550.0,0.2471145]
[1744980560846,0.01929946,84553.0,84551.0,0.21288746]
[1744980561707,0.25583848,84553.0,84551.0,0.21288746]
[1744980562923,0.25583848,84553.0,84550.0,0.2471145]
[1744980562924,0.23654082,84552.0,84550.0,0.2471145]
[1744980563348,0.01929031,84551.0,84550.0,0.2471145]
[1744980565156,0.01929031,84551.0,84550.0,0.5871145]
[1744980565492,0.24836523,84553.0,84550.0,0.5871145]
[1744980565759,0.01929089,84552.0,84550.0,0.5871145]
[1744980566264,0.01929089,84552.0,84551.0,0.22396127]
[1744980566610,0.01929089,84552.0,84551.0,0.56396127]
[1744980566810,0.23652316,84559.0,84557.0,0.21287415]
[1744980567122,0.0311206,84558.0,84555.0,0.22470536]
[1744980567294,0.0311206,84558.0,84553.0,0.21288365]
[1744980567295,0.23653157,84556.0,84554.0,0.34]
[1744980567497,0.01929265,84555.0,84554.0,0.34]
[1744980567698,0.01929265,84555.0,84554.0,0.5528817]
[1744980568041,0.2483552,84557.0,84554.0,0.5528817]
[1744980568266,0.01929323,84556.0,84555.0,0.21287894]
[1744980568887,0.01182564,84562.0,84560.0,0.21286657]
[1744980569290,0.01929616,84561.0,84560.0,0.22468767]
[1744980569507,0.24833792,84563.0,84559.0,0.01182606]
[1744980569709,0.24833792,84563.0,84559.0,0.22469317]
[1744980569950,0.01930753,84562.0,84559.0,0.22469317]
[1744980570151,0.25582246,84562.0,84560.0,0.01106635]
[1744980570357,0.23651565,84561.0,84560.0,0.01106635]
[1744980570652,0.25582416,84561.0,84560.0,0.01106635]
[1744980604823,0.25582416,84561.0,84552.0,0.34]
[1744980605154,0.2365379,84554.0,84551.0,0.22471565]
[1744980605524,0.25581674,84553.0,84551.0,0.22471565]
[1744980605698,0.01927851,84553.0,84551.0,0.22471614]
[1744980605858,0.01182662,84555.0,84551.0,0.22471614]
[1744980606957,0.2365357,84554.0,84551.0,0.22471614]
[1744980607446,0.25581682,84553.0,84551.0,0.22471614]
[1744980607750,0.01927851,84553.0,84551.0,0.22471614]
[1744980609539,0.01927851,84553.0,84552.0,0.21288674]
[1744980610428,0.24835965,84555.0,84552.0,0.21288674]
[1744980610648,0.01927851,84553.0,84552.0,0.21288674]
[1744980610986,0.24835965,84555.0,84552.0,0.21288674]
[1744980611202,0.01927851,84553.0,84552.0,0.21288674]
[1744980611439,0.34,84602.0,84557.0,0.01182634]
[1744980611440,0.01182564,84562.0,84557.0,0.01182634]
[1744980611682,0.2483427,84561.0,84558.0,0.22469783]
[1744980611911,0.01182592,84560.0,84557.0,0.01182634]
[1744980613111,0.24834571,84560.0,84557.0,0.22469972]
[1744980613745,0.23650521,84565.0,84557.0,0.22469972]
[1744980613949,0.23651844,84560.0,84558.0,0.22469568]
[1744980614149,0.23651844,84560.0,84557.0,0.22469972]
[1744980614379,0.24834436,84560.0,84556.0,0.21287631]
[1744980614717,0.24834957,84559.0,84556.0,0.21287631]
[1744980615382,0.23652489,84558.0,84556.0,0.21287631]
[1744980617106,0.23652489,84558.0,84557.0,0.01106308]
[1744980617976,0.24834957,84559.0,84557.0,0.01106308]
[1744980618299,0.23652404,84558.0,84557.0,0.01106308]
[1744980618479,0.23652404,84558.0,84556.0,0.01182648]
[1744980618969,0.23652404,84558.0,84557.0,0.0110621]
[1744980619335,0.25580335,84558.0,84557.0,0.0110621]
[1744980621530,0.01927931,84558.0,84557.0,0.56393625]
[1744980621750,0.24834363,84561.0,84558.0,0.34]
[1744980621918,0.01927884,84560.0,84558.0,0.34]
[1744980622363,0.01927884,84560.0,84558.0,0.55287033]
[1744980622882,0.01927884,84560.0,84559.0,0.0110621]
[1744980623081,0.01927884,84560.0,84559.0,0.56393122]
[1744980623415,0.2483385,84562.0,84560.0,0.34]
[1744980623624,0.23651565,84561.0,84560.0,0.34]
[1744980624846,0.2483385,84562.0,84560.0,0.34]
[1744980625346,0.2483385,84562.0,84560.0,0.10450007]
[1744980625988,0.2483385,84562.0,84561.0,0.01105923]
[1744980628960,0.24833636,84563.0,84561.0,0.01105923]
[1744980629360,0.24833636,84563.0,84562.0,0.01105923]
[1744980629560,0.24833636,84563.0,84560.0,0.22469071]
[1744980629765,0.23651322,84562.0,84560.0,0.01182592]
[1744980630465,0.23651322,84562.0,84559.0,0.2246909]
[1744980633276,0.23651322,84562.0,84560.0,0.52921459]
[1744980634377,0.01702048,84561.0,84560.0,0.52921459]
[1744980634759,0.24833624,84563.0,84560.0,0.52921459]
[1744980634964,0.01702082,84562.0,84560.0,0.52921459]
[1744980636498,0.25353433,84562.0,84560.0,0.52921459]
[1744980637119,0.01702082,84562.0,84560.0,0.52921459]
[1744980637676,0.24833524,84564.0,84560.0,0.52921459]
[1744980637878,0.01702048,84561.0,84560.0,0.52921459]
[1744980638086,0.24833747,84563.0,84560.0,0.52921459]
[1744980638286,0.24833747,84563.0,84562.0,0.34]
[1744980638507,0.01182536,84564.0,84562.0,0.52921028]
[1744980638683,0.24833427,84564.0,84562.0,0.34]
[1744980639052,0.23651005,84563.0,84562.0,0.34]
[1744980639262,0.23651956,84560.0,84558.0,0.3518262]
[1744980640870,0.23650625,84565.0,84562.0,0.20103206]
[1744980641068,0.23650827,84564.0,84562.0,0.20103206]
[1744980641271,0.23650791,84564.0,84562.0,0.01182564]
[1744980641598,0.23651005,84563.0,84562.0,0.34]
[1744980642904,0.23651005,84563.0,84562.0,0.01106196]
[1744980649383,0.25352725,84563.0,84562.0,0.01106196]
[1744980660681,0.23652963,84556.0,84555.0,0.12232139]
[1744980660887,0.23652963,84556.0,84554.0,0.20105494]
[1744980661225,0.25353557,84556.0,84554.0,0.01182676]
[1744980661551,0.25353557,84556.0,84551.0,0.20106023]
[1744980661552,0.01182676,84554.0,84551.0,0.20106157]
[1744980661731,0.24836293,84554.0,84551.0,0.01182718]
[1744980662135,0.01700492,84553.0,84551.0,0.01182718]
[1744980662296,0.2535433,84553.0,84551.0,0.20106048]
[1744980664394,0.01700492,84553.0,84551.0,0.20106048]
[1744980665208,0.25354515,84553.0,84551.0,0.20106203]
[1744980665798,0.25354515,84553.0,84551.0,0.54106192]
[1744980667159,0.23654082,84552.0,84551.0,0.34]
[1744980667369,0.23654362,84551.0,84550.0,0.38086734]
[1744980667719,0.25354272,84551.0,84550.0,0.38086734]
[1744980669208,0.25354272,84551.0,84550.0,0.04086734]
[1744980673768,0.25354272,84551.0,84550.0,0.05192265]
[1744980675227,0.0169991,84551.0,84550.0,0.05192265]
[1744980676331,0.0169991,84551.0,84550.0,0.24115978]
[1744980677315,0.25354272,84551.0,84550.0,0.05192265]
[1744980677517,0.0169991,84551.0,84550.0,0.58115978]
[1744980678266,0.0118269,84553.0,84552.0,0.34]
[1744980678718,0.0118269,84553.0,84552.0,0.35105531]
[1744980679498,0.02882668,84553.0,84552.0,0.35105531]
[1744980679696,0.2653647,84553.0,84552.0,0.01105531]
[1744980680003,0.2653647,84553.0,84552.0,0.35105531]
[1744980680717,0.02882668,84553.0,84552.0,0.35105531]
[1744980681845,0.01699978,84553.0,84552.0,0.35105531]
[1744980683262,0.01699978,84553.0,84552.0,0.54028797]
[1744980683668,0.24835981,84555.0,84552.0,0.54028797]
[1744980683830,0.01699534,84553.0,84552.0,0.54028797]
[1744980684154,0.24835981,84555.0,84552.0,0.54028797]
[1744980684431,0.01699534,84553.0,84552.0,0.54028797]
[1744980684666,0.24835981,84555.0,84554.0,0.34]
[1744980686021,0.24835981,84555.0,84554.0,0.01105531]
[1744980693338,0.24835514,84557.0,84554.0,0.01105531]
[1744980693538,0.24835514,84557.0,84554.0,0.35105531]
[1744980693945,0.24835514,84557.0,84554.0,0.54028169]
[1744980694141,0.23653037,84556.0,84554.0,0.54028169]
[1744980694409,0.23653037,84556.0,84555.0,0.01105531]
[1744980695907,0.24835514,84557.0,84556.0,0.34]
[1744980696474,0.24835514,84557.0,84556.0,0.35105531]
[1744980698605,0.24835514,84557.0,84556.0,0.01105531]
[1744980699424,0.01182634,84557.0,84556.0,0.01105531]
[1744980700278,0.01182634,84557.0,84556.0,0.35105531]
[1744980700655,0.23652667,84559.0,84556.0,0.54027901]
[1744980700871,0.23652437,84558.0,84557.0,0.01105531]
[1744980709551,0.25352623,84558.0,84557.0,0.01105531]
[1744980710998,0.25452623,84558.0,84557.0,0.01105531]
[1744980711180,0.37397414,84558.0,84557.0,0.01105531]
[1744980711665,0.37397414,84558.0,84550.0,0.02239707]
[1744980711666,0.25108447,84551.0,84550.0,0.00045055]
[1744980711913,0.37053238,84551.0,84550.0,0.00045055]
[1744980712115,0.38751296,84551.0,84550.0,0.00045055]
[1744980712259,0.51999296,84551.0,84550.0,0.00045055]
[1744980713802,0.51999296,84551.0,84519.0,0.4733222]
[1744980713803,0.23661078,84527.0,84524.0,0.34]
[1744980714006,0.01182969,84533.0,84526.0,0.34]
[1744980714007,0.24843569,84529.0,84526.0,0.34]
[1744980714207,0.23660908,84528.0,84526.0,0.34]
[1744980714612,0.23660908,84528.0,84526.0,0.341]
[1744980715016,0.24843569,84529.0,84526.0,0.53029039]
[1744980716157,0.23660848,84528.0,84526.0,0.341]
[1744980716374,0.24843569,84529.0,84526.0,0.53029017]
[1744980716752,0.01183025,84529.0,84527.0,0.18928823]
[1744980717340,0.01182997,84531.0,84528.0,0.01183039]
[1744980718145,0.01182997,84531.0,84526.0,0.5421211]
[1744980718146,0.23660697,84529.0,84526.0,0.001]
[1744980718380,0.24843722,84529.0,84526.0,0.19029041]
[1744980719390,0.24843722,84529.0,84526.0,0.53029026]
[1744980720347,0.23660912,84528.0,84526.0,0.341]
[1744980720481,0.24843722,84529.0,84526.0,0.53029031]
[1744980721619,0.24843722,84529.0,84526.0,0.52929031]
[1744980724099,0.23660005,84531.0,84528.0,0.18928427]
[1744980724302,0.24843002,84531.0,84527.0,0.20111852]
[1744980724476,0.01690425,84530.0,84527.0,0.20111852]
[1744980727032,0.25350673,84530.0,84527.0,0.20111852]
[1744980730620,0.26533684,84530.0,84527.0,0.01183053]
[1744980731967,0.26533684,84530.0,84527.0,0.20111809]
[1744980736309,0.24843612,84529.0,84527.0,0.18928809]
[1744980736652,0.01691173,84528.0,84527.0,0.52928809]
[1744980738024,0.24843313,84530.0,84527.0,0.52928809]
[1744980738228,0.01691207,84529.0,84527.0,0.52928809]
[1744980740164,0.01691207,84529.0,84527.0,0.33816505]
[1744980740616,0.01691207,84529.0,84527.0,0.18928693]
[1744980740923,0.25351764,84529.0,84526.0,0.20112098]
[1744980741410,0.25351764,84529.0,84526.0,0.01183067]
[1744980741639,0.26534789,84529.0,84526.0,0.01183067]
[1744980741941,0.23660915,84528.0,84525.0,0.20112328]
[1744980742134,0.23660915,84528.0,84526.0,0.34]
[1744980742336,0.01691139,84527.0,84526.0,0.34]
[1744980742563,0.25352217,84527.0,84526.0,0.34]
[1744980745004,0.25352217,84527.0,84525.0,0.35183081]
[1744980745518,0.25352217,84527.0,84525.0,0.34]
[1744980746357,0.01691139,84527.0,84525.0,0.52929153]
[1744980747727,0.25352261,84527.0,84525.0,0.52929153]
[1744980748269,0.25352261,84527.0,84525.0,0.34]
[1744980748462,0.25352261,84527.0,84525.0,0.52929295]
[1744980749961,0.23661358,84526.0,84525.0,0.34]
[1744980750223,0.25352261,84527.0,84525.0,0.34]
[1744980750425,0.01688065,84526.0,84525.0,0.34]
[1744980751356,0.01688065,84526.0,84525.0,0.5292931]
[1744980751747,0.23661233,84527.0,84525.0,0.5292931]
[1744980752051,0.01688097,84526.0,84525.0,0.5292931]
[1744980753768,0.01688097,84526.0,84524.0,0.55626917]
[1744980754807,0.01688097,84526.0,84525.0,0.1892931]
[1744980755495,0.01688097,84526.0,84524.0,0.55626917]
[1744980755675,0.01688097,84526.0,84525.0,0.5292931]
[1744980756444,0.25349455,84526.0,84525.0,0.34]
[1744980756672,0.01688097,84526.0,84525.0,0.34]
[1744980757390,0.25349455,84526.0,84525.0,0.34]
[1744980757834,0.01688097,84526.0,84525.0,0.34]
[1744980758534,0.25349455,84526.0,84525.0,0.34]
[1744980759623,0.01688097,84526.0,84525.0,0.34]
[1744980759757,0.25349455,84526.0,84525.0,0.34]
[1744980761076,0.25449455,84526.0,84525.0,0.34]
[1744980771199,0.25349455,84526.0,84525.0,0.34]
[1744980789692,0.23661638,84525.0,84524.0,0.01514351]
[1744980789906,0.25347757,84525.0,84524.0,0.01514351]
[1744980793286,0.25347757,84525.0,84521.0,0.0008422]
[1744980793484,0.23663598,84518.0,84517.0,0.34]
[1744980793689,0.25349479,84518.0,84517.0,0.45958899]
[1744980796987,0.25349479,84518.0,84517.0,0.4742269]
[1744980811893,0.25349479,84518.0,84517.0,0.1342269]
[1744980833374,0.25349479,84518.0,84516.0,0.34]
[1744980833575,0.25349479,84518.0,84516.0,0.34013938]
[1744980835444,0.25349479,84518.0,84516.0,0.00013938]
[1744980837087,0.23663878,84517.0,84516.0,0.00013938]
[1744980837290,0.25350062,84517.0,84516.0,0.00013938]
[1744980840195,0.01686184,84517.0,84516.0,0.34013938]
[1744980841571,0.25350062,84517.0,84516.0,0.34013938]
[1744980841974,0.25350062,84517.0,84516.0,0.00013938]
[1744980844320,0.01686184,84517.0,84516.0,0.18945264]
[1744980844617,0.24846987,84519.0,84516.0,0.18945264]
[1744980844913,0.01686184,84517.0,84516.0,0.18945264]
[1744980845150,0.24846987,84519.0,84516.0,0.18945264]
[1744980845255,0.01686184,84517.0,84516.0,0.18945264]
[1744980845470,0.24845392,84523.0,84518.0,0.34]
[1744980845707,0.01183081,84525.0,84518.0,0.34]
[1744980845928,0.24845026,84524.0,84518.0,0.54113955]
[1744980846085,0.24844459,84526.0,84522.0,0.34]
[1744980846520,0.24844459,84526.0,84523.0,0.20112867]
[1744980846824,0.14426955,84534.0,84526.0,0.18929086]
[1744980847022,0.23660243,84530.0,84528.0,0.20111678]
[1744980847316,0.24843152,84531.0,84528.0,0.20111678]
[1744980847523,0.24842962,84531.0,84529.0,0.18928249]
[1744980848244,0.24842962,84531.0,84528.0,0.20111678]
[1744980848441,0.23660253,84530.0,84528.0,0.20111678]
[1744980848884,0.23660518,84529.0,84527.0,0.01183053]
[1744980849064,0.24843252,84530.0,84528.0,0.18928639]
[1744980849263,0.24843252,84530.0,84527.0,0.20111848]
[1744980849895,0.23660033,84531.0,84529.0,0.18928415]
[1744980850060,0.2484303,84531.0,84528.0,0.01183039]
[1744980850397,0.23660238,84530.0,84528.0,0.20111637]
[1744980851664,0.23660518,84529.0,84527.0,0.20111848]
[1744980852245,0.24843543,84529.0,84526.0,0.01183067]
[1744980852745,0.24843543,84529.0,84526.0,0.20111989]
[1744980853543,0.24843543,84529.0,84525.0,0.16001443]
[1744980854003,0.24843543,84529.0,84526.0,0.18928922]
[1744980854191,0.23660809,84528.0,84525.0,0.01183081]
[1744980854392,0.23660809,84528.0,84524.0,0.20112586]
[1744980854609,0.01183039,84528.0,84524.0,0.20112495]
[1744980854951,0.24843922,84528.0,84524.0,0.20112495]
[1744980855148,0.23661224,84527.0,84524.0,0.20112495]
[1744980855553,0.24844277,84527.0,84524.0,0.20112495]
[1744980856151,0.01183053,84527.0,84525.0,0.18929271]
[1744980856371,0.24844143,84527.0,84524.0,0.20112495]
[1744980857456,0.23661406,84526.0,84524.0,0.20112495]
[1744980859488,0.01687693,84525.0,84524.0,0.20112495]
[1744980860542,0.01687693,84525.0,84524.0,0.01183095]
[1744980865238,0.01687693,84525.0,84524.0,0.20112629]
[1744980865404,0.01687693,84525.0,84523.0,0.18929696]
[1744980865760,0.25349506,84525.0,84522.0,0.54113044]
[1744980867241,0.25349506,84525.0,84523.0,0.18929742]
[1744980868384,0.01687693,84525.0,84523.0,0.18929742]
[1744980868713,0.01687693,84525.0,84524.0,0.18929534]
[1744980869512,0.25349331,84525.0,84522.0,0.54113044]
[1744980869719,0.25349331,84525.0,84523.0,0.18929654]
[1744980869925,0.25349331,84525.0,84522.0,0.54113044]
[1744980870130,0.01687693,84525.0,84523.0,0.189296]
[1744980870376,0.25349332,84525.0,84523.0,0.189296]
[1744980871308,0.01687693,84525.0,84524.0,0.18929534]
[1744980871476,0.25349503,84525.0,84523.0,0.34]
[1744980872548,0.01687693,84525.0,84523.0,0.52929611]
[1744980872754,0.25349353,84525.0,84523.0,0.52929611]
[1744980872968,0.01687693,84525.0,84523.0,0.52929611]
[1744980874967,0.25349378,84525.0,84523.0,0.52929611]
[1744980875482,0.25349378,84525.0,84523.0,0.34]
[1744980876663,0.24845013,84524.0,84521.0,0.2011297]
[1744980876843,0.24845013,84524.0,84523.0,0.34]
[1744980877226,0.236618,84525.0,84523.0,0.34]
[1744980877654,0.23661918,84524.0,84523.0,0.34]
[1744980878812,0.236618,84525.0,84523.0,0.34]
[1744980879937,0.236618,84525.0,84523.0,0.52929643]
[1744980880144,0.24844893,84526.0,84523.0,0.52929643]
[1744980880428,0.23661735,84525.0,84523.0,0.52929643]
[1744980880633,0.23661735,84525.0,84523.0,0.34]
[1744980880812,0.23661918,84524.0,84523.0,0.34]
[1744980882601,0.23661691,84525.0,84522.0,0.20113062]
[1744980882799,0.24844772,84525.0,84522.0,0.20113062]
[1744980882997,0.23661994,84524.0,84522.0,0.20113062]
[1744980883554,0.23661994,84524.0,84522.0,0.01183123]
[1744980884346,0.24844772,84525.0,84522.0,0.01183123]
[1744980885111,0.24844772,84525.0,84522.0,0.20112914]
[1744980885326,0.01183081,84525.0,84523.0,0.18929561]
[1744980885607,0.24844461,84526.0,84524.0,0.18929436]
[1744980885804,0.24844461,84526.0,84523.0,0.2011267]
[1744980888974,0.23661826,84525.0,84523.0,0.2011267]
[1744980889296,0.23662017,84524.0,84522.0,0.35183123]
[1744980889501,0.01686696,84524.0,84523.0,0.18929758]
[1744980889701,0.01686696,84524.0,84522.0,0.54113035]
[1744980891806,0.25348683,84524.0,84522.0,0.20113035]
[1744980892013,0.23662198,84523.0,84521.0,0.01183137]
[1744980892166,0.26531778,84524.0,84521.0,0.20113232]
[1744980892388,0.01686627,84522.0,84521.0,0.20113232]
[1744980892920,0.24845082,84524.0,84521.0,0.20113232]
[1744980893065,0.01686627,84522.0,84521.0,0.20113232]
[1744980893263,0.24845082,84524.0,84521.0,0.20113232]
[1744980893511,0.01686662,84523.0,84521.0,0.20113232]
[1744980893906,0.02869771,84523.0,84518.0,0.18930849]
[1744980894110,0.02869771,84523.0,84517.0,0.20113863]
[1744980895077,0.26532004,84523.0,84520.0,0.18930292]
[1744980895280,0.01183137,84521.0,84518.0,0.18930697]
[1744980895480,0.26532236,84520.0,84517.0,0.01183193]
[1744980895839,0.23663878,84517.0,84516.0,0.00013938]
[1744980895999,0.25349778,84517.0,84516.0,0.00013938]
[1744980899512,0.25349778,84517.0,84516.0,0.34013938]
[1744980901401,0.25349778,84517.0,84516.0,0.00013938]
[1744980903945,0.016859,84517.0,84516.0,0.00013938]
[1744980904778,0.24846483,84519.0,84516.0,0.00013938]
[1744980905020,0.016859,84517.0,84516.0,0.00013938]
[1744980905239,0.24846483,84519.0,84516.0,0.00013938]
[1744980905448,0.24846483,84519.0,84517.0,0.1893097]
[1744980906096,0.23663598,84518.0,84516.0,0.00013938]
[1744980906327,0.23663598,84518.0,84516.0,0.18945237]
[1744980906505,0.23663878,84517.0,84516.0,0.00013938]
[1744980906706,0.23663598,84518.0,84516.0,0.00013938]
[1744980907062,0.23663598,84518.0,84516.0,0.18945226]
[1744980908859,0.23663878,84517.0,84516.0,0.00013938]
[1744980909059,0.23663598,84518.0,84516.0,0.18945264]
[1744980909294,0.23663878,84517.0,84516.0,0.00013938]
[1744980910583,0.23763878,84517.0,84516.0,0.00013938]
[1744980914048,0.37162754,84517.0,84516.0,0.00013938]
[1744980919575,0.38840739,84517.0,84516.0,0.00013938]
[1744980921221,0.2367116,84491.0,84489.0,0.34]
[1744980921427,0.25340433,84490.0,84489.0,0.34013758]
[1744980921756,0.01668993,84490.0,84489.0,0.34013758]
[1744980921939,0.25340433,84490.0,84489.0,0.34013758]
[1744980922477,0.25340433,84490.0,84489.0,0.00013758]
[1744980924200,0.01668993,84490.0,84489.0,0.01760561]
[1744980924634,0.01183544,84492.0,84490.0,0.34]
[1744980924986,0.01183515,84494.0,84490.0,0.35183572]
[1744980925185,0.2485389,84494.0,84491.0,0.01183558]
[1744980925648,0.24853258,84496.0,84493.0,0.16569419]
[1744980926065,0.2367014,84495.0,84492.0,0.17753143]
[1744980926269,0.24853641,84495.0,84492.0,0.16569599]
[1744980926467,0.24853641,84495.0,84490.0,0.17753391]
[1744980926468,0.01183515,84494.0,84490.0,0.17753391]
[1744980926696,0.01183515,84494.0,84491.0,0.16569689]
[1744980927429,0.01183515,84494.0,84491.0,0.17753247]
[1744980928011,0.01183515,84494.0,84492.0,0.16569554]
[1744980929086,0.24853641,84495.0,84492.0,0.16569554]
[1744980929205,0.24853195,84497.0,84494.0,0.16569223]
[1744980929605,0.23669876,84496.0,84493.0,0.17752933]
[1744980929840,0.24853363,84496.0,84493.0,0.17752933]
[1744980931333,0.24853363,84496.0,84494.0,0.34]
[1744980932763,0.23666868,84507.0,84502.0,0.01183403]
[1744980932968,0.24849979,84508.0,84502.0,0.01183403]
[1744980933184,0.23667344,84505.0,84503.0,0.34]
[1744980933392,0.24850429,84506.0,84503.0,0.50567292]
[1744980933594,0.01183333,84507.0,84503.0,0.50567292]
[1744980933794,0.24850114,84507.0,84503.0,0.50567292]
[1744980934553,0.26517146,84506.0,84503.0,0.50567292]
[1744980934748,0.23667518,84504.0,84502.0,0.34]
[1744980934953,0.23667798,84503.0,84502.0,0.34]
[1744980935133,0.01666709,84503.0,84502.0,0.34]
[1744980935332,0.25334507,84503.0,84502.0,0.34]
[1744980936100,0.01666709,84503.0,84501.0,0.34]
[1744980936501,0.23668078,84502.0,84501.0,0.34]
[1744980936857,0.25336594,84502.0,84501.0,0.34]
[1744980937446,0.01668516,84502.0,84501.0,0.34]
[1744980939552,0.24850893,84504.0,84501.0,0.50567711]
[1744980939749,0.01668516,84502.0,84501.0,0.50567711]
[1744980939953,0.24850893,84504.0,84502.0,0.16567637]
[1744980942396,0.24850893,84504.0,84502.0,0.16567645]
[1744980942615,0.01183361,84505.0,84503.0,0.16567459]
[1744980942820,0.24850809,84505.0,84502.0,0.16567645]
[1744980943536,0.24850809,84505.0,84504.0,0.34]
[1744980945348,0.01183361,84505.0,84503.0,0.1656745]
[1744980945824,0.01183361,84505.0,84503.0,0.34]
[1744980945981,0.24850605,84505.0,84503.0,0.34]
[1744980947039,0.24850605,84505.0,84502.0,0.50567637]
[1744980947594,0.24850314,84506.0,84503.0,0.16567441]
[1744980947968,0.24850314,84506.0,84505.0,0.34]
[1744980948968,0.24850314,84506.0,84505.0,0.14071556]
[1744980949375,0.26518141,84506.0,84504.0,0.16567232]
[1744980950176,0.23667238,84505.0,84503.0,0.1775083]
[1744980950409,0.01183361,84505.0,84502.0,0.01183403]
[1744980950581,0.01667759,84504.0,84503.0,0.01183389]
[1744980950945,0.23667338,84505.0,84503.0,0.17750827]
[1744980951146,0.01667759,84504.0,84503.0,0.17750827]
[1744980952227,0.23667004,84506.0,84504.0,0.16567256]
[1744980952493,0.01667793,84505.0,84503.0,0.17750827]
[1744980953929,0.01667793,84505.0,84501.0,0.12782628]
[1744980954323,0.25335052,84505.0,84503.0,0.01183389]
[1744980955570,0.25335052,84505.0,84502.0,0.17751058]
[1744980956067,0.26518413,84505.0,84502.0,0.17751058]
[1744980956466,0.26518451,84505.0,84502.0,0.17751058]
[1744980957266,0.24851116,84504.0,84499.0,0.35183445]
[1744980957480,0.02850724,84504.0,84501.0,0.16567698]
[1744980957681,0.26518301,84504.0,84501.0,0.16567698]
[1744980958415,0.01667349,84504.0,84502.0,0.16567559]
[1744980959250,0.01183389,84503.0,84499.0,0.01183445]
[1744980959466,0.01667281,84502.0,84499.0,0.01183445]
[1744980959829,0.01667281,84502.0,84500.0,0.16568021]
[1744980962128,0.25335433,84502.0,84499.0,0.17751622]
[1744980963273,0.25335433,84502.0,84500.0,0.16568043]
[1744980964248,0.26518836,84502.0,84498.0,0.01183459]
[1744980964384,0.01183417,84501.0,84497.0,0.50568596]
[1744980964746,0.01666481,84500.0,84497.0,0.50568596]
[1744980964970,0.01666481,84500.0,84499.0,0.34]
[1744980965153,0.2533512,84500.0,84499.0,0.34]
[1744980965355,0.23668639,84500.0,84499.0,0.34]
[1744980965535,0.2533512,84500.0,84499.0,0.34]
[1744980966576,0.01666481,84500.0,84499.0,0.28513034]
[1744980966775,0.01183221,84515.0,84510.0,0.17749374]
[1744980966931,0.24847673,84515.0,84511.0,0.17749144]
[1744980967130,0.01528085,84514.0,84513.0,0.50565498]
[1744980967774,0.01183207,84516.0,84514.0,0.16565292]
[1744980968150,0.23664438,84515.0,84513.0,0.34]
[1744980968570,0.23664438,84515.0,84513.0,0.50565437]
[1744980969271,0.01183207,84516.0,84514.0,0.16565281]
[1744980971403,0.24847407,84516.0,84513.0,0.50565333]
[1744980971678,0.24847407,84516.0,84513.0,0.50565424]
[1744980971821,0.23664718,84514.0,84513.0,0.34]
[1744980972464,0.23664718,84514.0,84510.0,0.34]
[1744980972465,0.23665047,84513.0,84510.0,0.34]
[1744980972664,0.23665322,84512.0,84510.0,0.50566018]
[1744980972867,0.23665322,84512.0,84510.0,0.34]
[1744980973086,0.01183249,84513.0,84510.0,0.51749336]
[1744980973920,0.2366447,84515.0,84514.0,0.34]
[1744980974120,0.24847691,84515.0,84511.0,0.01183277]
[1744980974523,0.01531595,84514.0,84511.0,0.01183277]